bitfinex-derivatives/quotes_ETHF0:USTF0_20220106
["timestamp","ask_amount","ask_price","bid_price","bid_amount"]
[1641473891222,0.07021661,3360.0,3358.7,0.781654]
[1641473891619,2.07500661,3360.0,3359.2,2.00479]
[1641473891819,2.07500661,3360.0,3359.3,0.397182]
[1641473892020,0.07021661,3359.9,3359.4,0.384472]
[1641473892620,0.07021661,3359.9,3359.4,0.781654]
[1641473892820,0.07021661,3359.9,3359.4,0.397182]
[1641473893019,0.86191661,3359.9,3359.4,0.397182]
[1641473893420,0.07021661,3359.8,3359.4,0.397182]
[1641473893621,2.00479,3359.5,3359.4,0.397182]
[1641473893822,2.00479,3359.5,3359.4,0.857164]
[1641473894023,2.00479,3359.5,3359.4,0.781654]
[1641473894223,2.07500661,3359.5,3359.4,0.781654]
[1641473894825,2.07500661,3359.5,3359.4,1.241636]
[1641473895823,2.07500661,3359.5,3359.4,0.397182]
[1641473896024,2.07500661,3359.5,3358.8,2.00479]
[1641473896223,2.76430661,3359.5,3358.8,2.786444]
[1641473896426,1.5,3359.3,3358.2,32.263]
[1641473896624,1.5,3359.3,3357.8,1.85652102]
[1641473896824,0.07021661,3359.2,3357.8,1.85652102]
[1641473897429,0.07021661,3359.2,3357.8,1.1111]
[1641473897627,2.00479,3359.1,3358.4,2.00479]
[1641473897829,2.00479,3359.1,3358.5,0.397182]
[1641473898225,0.07021661,3359.0,3358.6,0.384472]
[1641473899428,0.07021661,3359.0,3358.7,0.397182]
[1641473899632,0.07021661,3359.0,3358.9,2.00479]
[1641473899828,0.07021661,3359.4,3358.9,2.99876255]
[1641473900030,2.00479,3359.5,3359.0,0.397182]
[1641473900528,0.0702045,3359.4,3359.0,0.397182]
[1641473900728,0.4546765,3359.4,3358.9,2.99876255]
[1641473901028,0.4546765,3359.4,3359.2,0.99397255]
[1641473901029,0.0702045,3359.3,3359.2,0.99397255]
[1641473901629,0.0702045,3359.4,3359.2,0.99397255]
[1641473901829,0.0702045,3359.4,3359.3,0.384472]
[1641473902031,0.0702045,3359.4,3359.3,0.459982]
[1641473902229,0.0702045,3359.4,3359.1,0.47352489]
[1641473903029,0.0702045,3359.4,3359.2,0.459982]
[1641473903230,0.0702045,3359.4,3359.3,1.01007513]
[1641473903428,0.0702045,3359.4,3359.3,1.40725713]
[1641473904234,0.0702045,3359.4,3359.3,1.88078202]
[1641473905031,0.0702045,3359.4,3359.3,1.40725713]
[1641473905235,0.0702045,3359.4,3359.3,0.397182]
[1641473906533,0.0702045,3360.0,3359.3,0.397182]
[1641473907335,1.9546765,3360.0,3359.3,0.397182]
[1641473907538,0.4546765,3360.0,3359.3,0.397182]
[1641473907737,2.00479,3359.7,3359.3,0.397182]
[1641473908135,1.5,3359.5,3359.0,1.1111]
[1641473908336,0.0702045,3359.6,3359.0,1.1111]
[1641473908537,2.86639,3359.7,3359.0,1.1111]
[1641473908538,1.5,3359.2,3359.0,1.1111]
[1641473908737,0.0702045,3359.5,3359.0,1.1111]
[1641473909039,0.0702045,3359.1,3359.0,1.1111]
[1641473909238,0.384472,3359.1,3359.0,1.1111]
[1641473909639,0.4546765,3359.1,3359.0,1.1111]
[1641473909840,2.4594665,3359.1,3359.0,1.1111]
[1641473910040,2.0749945,3359.1,3359.0,1.571082]
[1641473910243,2.0749945,3359.1,3359.0,1.1111]
[1641473911342,2.0749945,3359.1,3359.0,1.571082]
[1641473911544,2.0749945,3359.1,3359.0,1.1111]
[1641473912844,2.00479,3359.1,3359.0,1.1111]
[1641473913043,3.57500846,3359.1,3359.0,1.1111]
[1641473913244,3.57500846,3359.1,3357.7,1.51521277]
[1641473913245,16.86948046,3359.1,3358.5,0.75327843]
[1641473913446,1.5,3358.6,3358.5,0.75327843]
[1641473913647,15.0693,3358.6,3358.5,0.75327843]
[1641473913849,17.14430846,3358.6,3358.5,0.75327843]
[1641473914048,2.73430846,3358.6,3358.5,0.75327843]
[1641473914249,2.73430846,3358.6,3358.3,1.01007513]
[1641473914446,2.73430846,3358.6,3358.4,0.459982]
[1641473914646,2.73430846,3358.6,3358.2,0.397182]
[1641473914846,0.07021846,3358.5,3358.2,0.397182]
[1641473915451,2.00479,3358.6,3358.3,0.459982]
[1641473915647,2.00479,3358.6,3358.2,0.397182]
[1641473916048,0.07023956,3358.5,3357.8,0.75327843]
[1641473916250,0.384472,3358.4,3357.8,0.75327843]
[1641473916653,0.384472,3358.4,3357.9,1.15046043]
[1641473917350,2.00479,3358.6,3357.9,0.397182]
[1641473917750,0.07023902,3358.5,3357.9,0.397182]
[1641473918254,0.384472,3358.4,3357.9,0.397182]
[1641473918452,0.384472,3358.4,3357.9,1.15046043]
[1641473918853,2.00479,3358.6,3357.9,1.15046043]
[1641473919454,0.07023804,3358.5,3357.9,1.15046043]
[1641473919656,0.07023804,3358.5,3357.9,0.75327843]
[1641473919858,0.76303804,3358.5,3357.9,0.75327843]
[1641473920257,0.384472,3358.4,3357.9,0.75327843]
[1641473920456,0.45471004,3358.4,3357.9,0.75327843]
[1641473920861,0.384472,3358.4,3357.9,0.75327843]
[1641473921357,0.07024371,3358.3,3357.9,0.75327843]
[1641473921758,0.384472,3358.4,3357.8,1.22686089]
[1641473922957,0.07024577,3358.3,3357.8,1.22686089]
[1641473923561,0.07024577,3358.3,3357.8,0.75327843]
[1641473923761,0.07024577,3358.3,3357.7,3.14254043]
[1641473924663,0.07024577,3358.3,3357.7,2.75806843]
[1641473924864,0.07024577,3358.3,3357.7,2.00479]
[1641473925262,0.83414577,3358.3,3357.7,2.00479]
[1641473925666,0.07024577,3358.2,3357.7,2.00479]
[1641473926865,0.07024577,3358.2,3357.7,2.401972]
[1641473927265,1.87319862,3358.4,3357.7,2.401972]
[1641473927467,14.91479,3358.6,3357.7,2.401972]
[1641473927867,0.07024472,3358.5,3357.7,2.401972]
[1641473928769,0.07024472,3358.5,3357.7,3.15525043]
[1641473929370,2.98928977,3357.8,3356.9,1.51521277]
[1641473929570,16.66948977,3357.8,3356.9,1.51521277]
[1641473929869,12.91,3356.9,3356.4,6.31314845]
[1641473930069,1.5,3356.7,3356.4,3.78801399]
[1641473930270,1.48956929,3356.5,3356.4,3.78801399]
[1641473930472,1.88675129,3356.5,3356.4,3.78801399]
[1641473931270,2.34153919,3356.5,3356.4,3.78801399]
[1641473931470,2.34153919,3356.5,3355.1,35.43258742]
[1641473931670,2.34153919,3356.5,3355.1,3.13718742]
[1641473931970,2.00479,3355.4,3355.1,3.13718742]
[1641473932269,2.68109,3355.4,3355.2,0.459982]
[1641473933771,0.781654,3355.5,3355.2,0.459982]
[1641473933972,0.781654,3355.5,3354.7,2.00479]
[1641473933973,2.401972,3355.4,3354.5,6.92520141]
[1641473934375,15.311972,3355.4,3354.5,6.92520141]
[1641473934573,1.49020636,3355.1,3354.5,6.92520141]
[1641473934771,0.397182,3355.0,3354.5,6.92520141]
[1641473934971,14.85096704,3355.4,3354.4,3.78801399]
[1641473935172,1.94096704,3355.4,3354.4,3.78801399]
[1641473935775,1.5,3355.2,3354.4,3.78801399]
[1641473935978,2.00479,3354.5,3354.3,3.13718742]
[1641473936176,2.65449,3354.5,3354.4,0.459982]
[1641473936375,3.051672,3354.5,3353.7,3.13718742]
[1641473936576,2.65449,3354.5,3353.7,3.13718742]
[1641473936776,2.65449,3354.5,3354.0,1.5]
[1641473936976,0.6497,3354.5,3354.0,1.5]
[1641473937177,32.5177,3355.3,3353.7,0.6313]
[1641473937576,32.5177,3355.3,3353.6,1.49014197]
[1641473937776,0.7812,3355.5,3354.5,1.5]
[1641473937978,2.00479,3355.4,3354.6,2.00479]
[1641473938177,2.00479,3355.4,3354.7,0.397182]
[1641473938377,2.401972,3355.4,3354.7,0.397182]
[1641473938580,2.00479,3355.4,3354.7,0.397182]
[1641473939179,0.397182,3355.3,3354.7,0.397182]
[1641473939579,2.00479,3355.4,3354.7,0.397182]
[1641473939981,2.00479,3355.7,3355.0,2.00479]
[1641473940181,2.401972,3355.7,3355.1,0.397182]
[1641473941085,2.786444,3355.7,3354.4,33.17865632]
[1641473941285,16.558644,3355.7,3354.3,2.00479]
[1641473941484,3.648644,3355.7,3354.3,2.00479]
[1641473941883,2.00479,3355.0,3354.3,2.00479]
[1641473942081,2.86699,3355.7,3354.9,1.5]
[1641473942282,2.00479,3355.7,3354.4,1.48975569]
[1641473942485,2.00479,3355.7,3354.8,1.5]
[1641473942683,2.00479,3355.7,3354.4,2.98975569]
[1641473942883,2.00479,3355.7,3354.4,1.48975569]
[1641473943083,2.00479,3355.7,3354.5,1.5]
[1641473943282,2.00479,3355.7,3354.5,1.40242172]
[1641473943883,2.00479,3355.7,3355.0,2.00479]
[1641473944085,2.00479,3355.7,3355.1,0.397182]
[1641473944283,2.00479,3355.7,3355.2,1.5]
[1641473944484,2.00479,3356.1,3355.3,0.397182]
[1641473944683,2.00479,3356.1,3355.6,1.5]
[1641473944886,95.3113,3357.8,3356.0,1.5]
[1641473945083,95.3113,3357.8,3356.2,1.5]
[1641473945283,0.06254035,3357.7,3356.2,1.5]
[1641473945484,0.06254035,3357.7,3356.4,1.48889286]
[1641473945686,0.06254035,3357.7,3356.2,1.5]
[1641473945883,2.06733035,3357.7,3356.8,2.00479]
[1641473946284,0.06254035,3357.6,3356.8,2.00479]
[1641473946484,0.781654,3357.5,3356.8,2.00479]
[1641473946683,0.781654,3357.5,3356.8,2.401972]
[1641473947085,0.06254035,3357.4,3356.8,2.401972]
[1641473947686,0.397182,3357.3,3356.8,2.401972]
[1641473947886,0.397182,3357.3,3356.8,0.397182]
[1641473948085,1.191182,3357.3,3356.8,0.397182]
[1641473948286,1.191182,3357.3,3356.5,2.00479]
[1641473948889,1.191182,3357.3,3356.1,2.00479]
[1641473949087,12.91,3357.2,3356.1,2.00479]
[1641473949287,12.91,3357.2,3355.5,32.2502]
[1641473949288,0.794,3357.3,3355.5,32.2502]
[1641473949489,0.794,3357.3,3355.5,33.07731764]
[1641473949490,0.06255063,3357.2,3355.5,33.07731764]
[1641473949689,0.06255063,3357.2,3355.8,1.5]
[1641473949889,2.00479,3356.8,3356.0,2.00479]
[1641473950088,2.00479,3356.8,3356.1,0.397182]
[1641473950587,0.384472,3356.7,3356.1,0.397182]
[1641473950787,0.129372,3356.7,3356.2,0.255101]
[1641473950988,0.129372,3356.7,3356.3,0.397182]
[1641473951790,0.51013876,3356.8,3356.3,0.397182]
[1641473952191,1.5,3356.4,3356.0,2.00479]
[1641473952391,0.397182,3356.3,3356.0,2.00479]
[1641473952592,1.5,3356.1,3355.7,2.00479]
[1641473952790,0.397182,3356.0,3354.8,0.7437552]
[1641473953192,1.88707753,3356.0,3354.8,0.7437552]
[1641473953391,1.88707753,3356.0,3354.6,63.6996]
[1641473953591,1.88707753,3356.0,3354.6,32.4957]
[1641473953792,0.397182,3356.0,3354.5,1.48970687]
[1641473953995,0.397182,3356.0,3355.3,2.00479]
[1641473954195,0.397182,3356.0,3355.4,0.781654]
[1641473954996,2.00479,3356.1,3355.4,0.781654]
[1641473955598,0.397182,3356.0,3355.4,0.781654]
[1641473955797,2.00479,3356.1,3355.4,0.781654]
[1641473956600,32.6946,3356.7,3355.4,0.781654]
[1641473956798,0.11295676,3356.8,3355.4,0.781654]
[1641473956998,0.11295676,3356.8,3355.4,1.412954]
[1641473957199,0.11295676,3356.8,3355.6,1.48924098]
[1641473957403,0.11295676,3356.8,3356.4,1.5]
[1641473957600,1.4889771,3358.1,3356.5,0.781654]
[1641473958099,0.06253431,3358.0,3357.3,2.00479]
[1641473958299,0.384472,3357.9,3357.3,2.00479]
[1641473958500,1.884472,3357.9,3357.3,2.00479]
[1641473958700,0.45971631,3357.8,3356.9,2.00479]
[1641473959105,0.06253431,3357.7,3356.9,2.00479]
[1641473959301,0.397182,3357.6,3356.9,2.00479]
[1641473959702,0.06253431,3357.5,3356.9,2.00479]
[1641473959901,0.45971631,3357.5,3356.9,2.00479]
[1641473960105,0.45971631,3357.5,3356.9,2.401972]
[1641473960503,0.06253431,3357.4,3356.9,2.401972]
[1641473961104,0.06253431,3357.4,3356.9,0.397182]
[1641473961904,0.06253431,3357.6,3357.3,2.00479]
[1641473962104,0.06253431,3357.6,3357.4,1.241636]
[1641473962403,2.00479,3358.1,3357.4,1.241636]
[1641473962404,0.06253431,3358.0,3357.4,1.241636]
[1641473962604,2.00479,3358.1,3357.4,1.241636]
[1641473962803,2.00479,3358.1,3357.7,1.0]
[1641473963009,0.06251024,3357.9,3357.7,1.0]
[1641473963211,0.06251024,3358.0,3357.7,1.0]
[1641473963411,0.06251024,3358.0,3357.8,0.459982]
[1641473963609,0.06251024,3358.0,3357.7,1.0]
[1641473964314,2.00479,3358.4,3357.8,0.857164]
[1641473964711,0.06249622,3358.2,3357.8,0.857164]
[1641473965112,0.06249622,3358.3,3357.8,0.857164]
[1641473965312,2.00479,3358.4,3357.8,0.857164]
[1641473965713,2.00479,3358.4,3357.9,0.8953]
[1641473965914,0.384472,3358.3,3357.9,0.8953]
[1641473966318,2.00479,3358.4,3357.9,0.8953]
[1641473966519,2.00479,3358.8,3357.9,2.3953]
[1641473966715,0.7437552,3358.9,3357.9,2.3953]
[1641473966922,0.7437552,3358.9,3357.9,2.38350375]
[1641473967116,0.7437552,3358.9,3358.2,1.5]
[1641473967317,0.7437552,3358.9,3358.3,0.397182]
[1641473967517,0.7437552,3358.9,3358.4,0.384472]
[1641473967717,0.7437552,3358.9,3358.8,0.8653]
[1641473967921,0.992023,3359.2,3358.8,1.325282]
[1641473968118,2.7485452,3359.4,3358.8,1.325282]
[1641473968320,2.7485452,3359.4,3358.9,0.397182]
[1641473969420,2.00479,3359.4,3358.9,0.397182]
[1641473971721,0.7437552,3359.8,3359.3,1.5]
[1641473972023,0.7437552,3359.8,3359.4,0.781654]
[1641473972223,0.7437552,3359.9,3359.4,2.786444]
[1641473972819,0.7437552,3359.9,3359.4,0.781654]
[1641473973220,2.996813,3360.2,3359.4,0.781654]
[1641473973422,2.00479,3360.2,3359.4,0.781654]
[1641473973621,0.397182,3360.1,3359.4,0.397182]
[1641473973822,0.931982,3360.1,3359.4,0.9843]
[1641473974222,2.00479,3359.5,3359.4,0.9843]
[1641473975222,2.401972,3359.5,3359.4,0.9843]
[1641473975422,4.286444,3359.5,3358.8,1.8653]
[1641473975623,2.786444,3359.5,3358.8,1.8653]
[1641473976223,2.00479,3358.9,3358.8,2.262482]
[1641473976425,2.84449,3358.9,3358.8,2.722464]
[1641473976724,2.84449,3358.9,3358.8,1.8653]
[1641473977326,3.241672,3358.9,3358.8,1.8653]
[1641473977923,3.241672,3358.9,3358.8,2.325282]
[1641473978125,2.84449,3358.9,3358.8,1.8653]
[1641473978726,2.00479,3358.9,3358.8,1.8653]
[1641473978925,2.00479,3358.9,3358.8,2.325282]
[1641473979124,2.00479,3358.9,3358.8,1.8653]
[1641473979727,2.00479,3358.9,3358.8,2.325282]
[1641473980126,2.00479,3358.9,3358.8,1.8653]
[1641473980526,2.00479,3358.9,3358.8,2.325282]
[1641473981728,2.00479,3359.5,3358.8,2.325282]
[1641473981928,2.00479,3359.5,3358.9,0.397182]
[1641473982129,2.389262,3359.5,3358.9,0.397182]
[1641473982332,0.06245245,3359.4,3358.9,0.397182]
[1641473985638,0.44692445,3359.4,3358.9,0.397182]
[1641473985841,0.06245245,3359.4,3358.9,0.397182]
[1641473986037,0.06245245,3359.3,3358.9,0.397182]
[1641473986238,2.00479,3359.5,3358.9,0.397182]
[1641473986638,0.06245213,3359.4,3358.9,0.397182]
[1641473987240,5.467,3360.4,3358.9,1.88493187]
[1641473987642,0.06243956,3360.3,3358.9,1.88493187]
[1641473988042,0.06243956,3360.3,3358.9,0.397182]
[1641473988242,2.00479,3360.0,3359.2,2.00479]
[1641473988444,0.781654,3359.9,3359.3,0.397182]
[1641473988642,0.84409356,3359.9,3359.3,0.397182]
[1641473988843,0.06243956,3359.8,3359.4,0.384472]
[1641473989143,0.397182,3359.8,3359.2,2.00479]
[1641473989344,0.06244498,3359.7,3359.2,2.00479]
[1641473989944,0.397182,3359.6,3359.2,2.00479]
[1641473990146,2.00479,3359.6,3358.8,1.8653]
[1641473990345,2.00479,3359.6,3358.9,0.397182]
[1641473990744,2.00479,3359.6,3359.0,0.384472]
[1641473990945,2.00479,3359.6,3359.1,0.397182]
[1641473991545,1.00479,3359.6,3359.1,0.397182]
[1641473991747,2.00479,3360.0,3359.8,0.87381]
[1641473992945,2.401972,3360.0,3359.8,0.87381]
[1641473993948,2.00479,3360.0,3359.9,0.459982]
[1641473994249,2.00479,3360.5,3359.9,0.459982]
[1641473994448,2.00479,3360.5,3360.0,0.397182]
[1641473995448,2.401972,3360.5,3360.0,0.397182]
[1641473996248,2.00479,3360.5,3360.0,0.397182]
[1641473996948,2.786444,3360.5,3360.0,0.397182]
[1641473997551,2.786444,3360.5,3359.8,0.87381]
[1641473997754,3.453744,3360.5,3359.8,0.87381]
[1641474000050,3.453744,3360.5,3359.8,1.270992]
[1641474000250,3.069272,3360.5,3359.8,1.270992]
[1641474000454,2.786444,3360.5,3359.8,1.270992]
[1641474001254,2.401972,3360.5,3359.8,1.270992]
[1641474001752,2.00479,3360.9,3360.2,1.5]
[1641474001953,0.7437552,3361.0,3360.4,1.5]
[1641474002352,1.24002714,3361.5,3360.8,2.00479]
[1641474002851,2.00479,3361.6,3360.8,2.00479]
[1641474002852,0.74980614,3361.1,3360.8,2.00479]
[1641474003053,0.74980614,3361.1,3360.9,0.857164]
[1641474003451,0.74980614,3361.1,3360.9,2.357164]
[1641474003652,0.74980614,3361.1,3361.0,1.00972178]
[1641474003951,0.74980614,3361.1,3361.0,0.384472]
[1641474004351,1.24002714,3361.6,3361.0,0.384472]
[1641474004653,1.24002714,3361.6,3361.1,0.397182]
[1641474004853,1.51606119,3361.9,3361.1,0.397182]
[1641474005052,2.00479,3362.0,3361.1,0.397182]
[1641474005655,2.00479,3362.0,3361.2,0.97584198]
[1641474005854,2.00479,3362.0,3361.3,0.397182]
[1641474006053,33.3674,3362.6,3361.5,1.5]
[1641474006252,4.24291799,3362.9,3362.4,2.00479]
[1641474006453,3.1240388,3362.9,3362.4,0.384472]
[1641474006856,0.06234185,3362.8,3362.4,0.384472]
[1641474007055,0.06234185,3362.8,3362.4,0.781654]
[1641474007655,0.22187189,3362.8,3362.4,0.781654]
[1641474007858,0.22187189,3362.8,3362.4,0.397182]
[1641474008061,0.06234185,3362.7,3362.1,1.83745521]
[1641474008259,7.189e-05,3362.8,3362.7,1.48608283]
[1641474008455,7.189e-05,3362.8,3362.7,2.75736483]
[1641474008666,0.06230971,3363.1,3362.7,2.75736483]
[1641474009261,2.00479,3363.2,3362.7,1.271282]
[1641474009457,1.24002714,3363.5,3362.7,1.271282]
[1641474009657,1.24002714,3363.5,3362.7,14.181282]
[1641474009857,1.24002714,3363.5,3362.9,1.5]
[1641474010059,1.24002714,3363.5,3363.2,12.91]
[1641474010259,1.24002714,3363.5,3363.4,4.00958]
[1641474010459,1.24002714,3363.5,3363.4,4.68028]
[1641474010760,1.30106134,3363.5,3363.4,4.68028]
[1641474010959,0.0610342,3363.5,3363.4,5.4614]
[1641474011360,0.0610342,3363.5,3363.4,5.140262]
[1641474011561,0.384472,3363.7,3363.4,4.469562]
[1641474011769,0.397182,3363.9,3363.4,4.469562]
[1641474011967,1.24002714,3364.1,3363.4,4.469562]
[1641474011968,0.0610342,3363.5,3363.4,4.469562]
[1641474012169,0.0610342,3363.8,3363.4,4.469562]
[1641474012369,0.4582162,3363.8,3363.4,4.469562]
[1641474012568,0.4582162,3363.8,3363.4,4.00958]
[1641474012769,0.397182,3363.8,3363.4,4.00958]
[1641474012974,0.0610342,3363.7,3363.4,4.00958]
[1641474013173,0.0610342,3363.7,3363.5,0.459982]
[1641474013569,97.5507,3365.1,3363.5,0.459982]
[1641474013570,1.5,3365.0,3363.5,0.459982]
[1641474013771,1.51606119,3365.2,3363.5,0.459982]
[1641474013772,1.5,3364.7,3363.5,0.459982]
[1641474013970,1.5,3365.0,3363.5,0.459982]
[1641474014171,14.395798,3365.3,3363.5,0.459982]
[1641474014472,2.00479,3365.4,3364.2,2.00479]
[1641474014971,1.5,3365.0,3364.2,2.00479]
[1641474015172,0.6838,3365.7,3364.2,2.00479]
[1641474015377,0.6838,3365.7,3364.3,1.5]
[1641474015575,0.6838,3365.7,3364.2,2.00479]
[1641474015576,0.6838,3365.7,3364.5,1.48531469]
[1641474015874,0.6838,3365.7,3365.0,1.5]
[1641474016070,31.7261,3366.7,3365.3,1.5]
[1641474016273,1.51606119,3366.8,3366.5,4.00958]
[1641474016470,1.51606119,3366.8,3366.5,5.039162]
[1641474016871,3.47215005,3367.8,3366.5,5.039162]
[1641474017071,2.00479,3368.4,3367.3,0.002]
[1641474017270,4.04346173,3368.0,3367.3,0.002]
[1641474017473,3.64627973,3368.0,3367.3,1.502]
[1641474017672,3.64627973,3368.0,3367.3,0.002]
[1641474017873,0.397182,3367.9,3367.4,1.43998439]
[1641474018271,2.00479,3369.1,3367.8,4.00958]
[1641474018473,5.467,3370.6,3367.8,4.00958]
[1641474018672,1.5,3369.5,3367.8,4.00958]
[1641474018871,5.467,3370.6,3367.8,5.50958]
[1641474019071,5.467,3370.6,3367.9,1.08418952]
[1641474019271,5.467,3370.6,3368.2,1.5]
[1641474019472,33.0708,3371.5,3368.8,1.5]
[1641474019771,1.5,3371.5,3368.8,0.7833]
[1641474019972,1.48305682,3371.5,3369.6,1.48305682]
[1641474020172,5.467,3371.6,3369.6,0.753]
[1641474020474,65.1792,3372.7,3370.9,2.00479]
[1641474020775,1.5,3371.3,3370.9,2.77179]
[1641474020977,9.467,3373.0,3371.0,1.04770112]
[1641474021174,4.745239,3372.6,3371.0,1.04770112]
[1641474021376,4.745028,3372.9,3371.0,1.04770112]
[1641474021572,21.90913446,3375.8,3371.0,1.04770112]
[1641474021573,5.467,3373.6,3371.1,1.5]
[1641474021776,1.5,3373.2,3371.1,1.5]
[1641474021973,5.467,3373.6,3371.3,1.5]
[1641474022174,5.467,3373.6,3371.0,1.04770112]
[1641474022373,5.467,3373.6,3373.5,2.00479]
[1641474022572,0.384472,3373.7,3373.4,0.459982]
[1641474022772,7.47179,3374.5,3373.4,0.459982]
[1641474023172,1.5,3374.4,3373.4,0.459982]
[1641474023375,7.47179,3374.5,3373.4,0.459982]
[1641474023581,5.467,3375.6,3373.4,0.459982]
[1641474024172,1.5,3375.1,3373.4,0.459982]
[1641474024373,1.5,3375.1,3374.7,2.00479]
[1641474024674,1.5,3374.8,3372.3,1.5]
[1641474024872,1.5,3374.6,3371.5,4.0]
[1641474025077,1.5,3373.2,3370.7,1.5]
[1641474025273,0.7157,3373.2,3370.3,1.9523]
[1641474025475,1.5,3372.4,3370.0,4.0]
[1641474025673,1.5,3371.7,3370.0,4.0]
[1641474025874,1.5,3371.6,3368.7,4.0]
[1641474026077,1.48308321,3371.4,3369.8,1.48297104]
[1641474026276,0.397182,3371.3,3369.8,1.48297104]
[1641474026474,4.00958,3370.7,3369.0,0.6313]
[1641474026674,5.192862,3370.7,3368.7,2.73480113]
[1641474026875,4.79568,3370.7,3368.7,2.73480113]
[1641474027075,4.79568,3370.7,3369.3,25.67693219]
[1641474027274,0.7861,3370.7,3369.8,1.5]
[1641474027475,0.7861,3370.7,3369.3,25.67693219]
[1641474027476,0.7861,3370.7,3370.6,1.333792]
[1641474027675,1.5,3372.8,3370.7,2.01332263]
[1641474027874,1.5,3372.6,3370.6,0.87381]
[1641474028274,0.7157,3373.2,3370.6,0.87381]
[1641474028477,2.00479,3372.2,3371.4,2.00479]
[1641474028679,2.72079,3372.2,3371.4,2.00479]
[1641474028877,0.384472,3372.1,3371.4,2.00479]
[1641474029079,0.42594228,3372.1,3371.4,2.00479]
[1641474029276,0.04147028,3372.0,3371.4,2.00479]
[1641474029878,1.5,3374.0,3371.4,2.00479]
[1641474030079,0.04147028,3371.9,3371.4,2.00479]
[1641474030279,1e-08,3373.9,3371.4,2.00479]
[1641474030480,1e-08,3373.9,3372.4,3.50479]
[1641474030680,5.467,3375.7,3372.4,2.85849]
[1641474030881,1.5,3374.2,3372.4,2.85849]
[1641474031283,1.5,3373.8,3372.4,2.85849]
[1641474031481,0.03684827,3374.1,3372.4,2.85849]
[1641474031682,0.03684827,3373.7,3372.4,2.00479]
[1641474031882,1.5,3373.2,3372.4,2.00479]
[1641474032083,0.781654,3373.1,3372.4,2.00479]
[1641474032483,2.00479,3373.0,3372.4,2.00479]
[1641474032685,1.5,3372.8,3372.4,2.00479]
[1641474032886,1.5,3372.5,3371.4,2.00479]
[1641474033284,1.48259727,3372.5,3371.4,2.00479]
[1641474033486,1.48259727,3372.5,3370.6,2.35640727]
[1641474033686,1.53733609,3372.4,3370.6,0.87381]
[1641474033889,0.03733609,3372.4,3370.6,0.87381]
[1641474034286,0.03733609,3372.3,3370.6,0.87381]
[1641474034586,0.03733609,3372.7,3371.4,2.00479]
[1641474034787,0.03733609,3372.7,3371.4,4.30579]
[1641474034986,0.03733609,3372.7,3371.4,2.80579]
[1641474035187,1.5,3373.0,3371.4,2.80579]
[1641474035386,0.03733609,3372.6,3371.4,2.00479]
[1641474035587,0.66663609,3372.6,3371.4,2.00479]
[1641474035787,0.6293,3372.6,3371.4,2.00479]
[1641474035988,0.03733609,3372.5,3371.4,2.00479]
[1641474036390,0.03733609,3372.5,3372.4,2.00479]
[1641474036787,0.03733609,3372.5,3370.8,0.91463833]
[1641474036988,0.03733609,3372.5,3371.3,1.48231817]
[1641474037388,0.03733609,3372.5,3371.2,0.6313]
[1641474037588,0.82866564,3387.0,3372.1,1.5]
[1641474037789,9.99999999,3375.3,3372.1,1.5]
[1641474037987,9.99999999,3375.3,3370.9,34.4119]
[1641474037988,1.5,3375.3,3371.6,14.41]
[1641474038189,31.4069,3375.5,3372.1,1.5]
[1641474038390,7.47179,3374.6,3373.8,2.00479]
[1641474038589,0.384472,3374.5,3373.8,2.00479]
[1641474038789,0.42133764,3374.5,3373.8,2.00479]
[1641474038995,0.43404764,3374.4,3373.8,2.00479]
[1641474039391,0.03686564,3374.3,3373.8,2.00479]
[1641474039791,0.43404764,3374.3,3373.8,2.00479]
[1641474039992,0.397182,3374.3,3373.8,2.00479]
[1641474040192,0.03686564,3374.2,3373.8,2.00479]
[1641474040391,0.397182,3374.1,3373.8,2.00479]
[1641474040591,0.397182,3374.1,3373.5,2.00479]
[1641474040791,1.070582,3374.1,3373.5,2.00479]
[1641474040991,0.03686564,3374.0,3371.5,34.7674]
[1641474041190,0.03686564,3374.0,3371.5,1.497]
[1641474041594,0.03686564,3374.0,3372.0,1.5]
[1641474041994,0.03686564,3374.0,3371.3,12.91]
[1641474042494,2.00479,3373.9,3373.1,2.00479]
[1641474042793,0.781654,3373.8,3372.7,2.00479]
[1641474042994,0.81851964,3373.8,3372.7,2.00479]
[1641474043194,0.03686564,3373.7,3372.7,2.00479]
[1641474044394,0.03686564,3373.7,3373.4,2.00479]
[1641474044596,0.397182,3373.6,3373.4,2.00479]
[1641474045094,0.03686564,3373.5,3373.4,2.00479]
[1641474045494,0.03686564,3373.5,3372.7,2.00479]
[1641474045695,0.397182,3373.4,3372.7,2.00479]
[1641474046198,0.03686564,3373.3,3371.1,1.497]
[1641474046395,2.00479,3372.9,3371.9,2.00479]
[1641474046597,1.5,3372.3,3371.6,2.00479]
[1641474046799,0.781654,3372.2,3371.6,2.00479]
[1641474046996,1.5,3371.9,3371.6,2.00479]
[1641474047197,1.5,3371.9,3370.0,0.81999189]
[1641474047198,0.397182,3371.8,3369.1,65.6379]
[1641474047398,12.91,3371.7,3369.1,31.7048]
[1641474047697,1.48304802,3371.5,3369.6,1.48304802]
[1641474047899,2.08464802,3371.5,3369.6,2.98304802]
[1641474048099,2.08464802,3371.5,3369.7,1.5]
[1641474048298,0.6016,3371.5,3370.5,1.5]
[1641474048498,0.6016,3371.5,3371.3,2.00479]
[1641474048700,0.6016,3371.5,3371.0,2.00479]
[1641474048898,0.384472,3371.7,3371.0,2.00479]
[1641474049100,0.397182,3371.6,3371.0,2.00479]
[1641474049301,0.384472,3371.7,3369.9,2.74066654]
[1641474049499,12.91,3372.0,3369.9,2.74066654]
[1641474049698,2.00479,3372.1,3369.9,2.74066654]
[1641474050098,2.63609,3372.1,3369.9,2.74066654]